Cogmind - Beta 14 @@@ ROGUE MODE // 2024.08.24 @ 17:25:33 // Winter2019/RPGLIKE Player: Daffa0360 Result: Destroyed by Y-54 Guardian with Gatling Laser Performance ------------- Evolutions (4) 2000 Regions Visited (6) 1200 Robots Destroyed (18) 90 Value Destroyed (429) 429 Prototype IDs (7) 140 Alien Tech Used (0) 0 Bonus (189) 189 TOTAL SCORE: 4048 Bonus ------- Registered with UFD 300 Friendly Fire -111 Cogmind --------- Core Integrity 0/600 Matter 1/300 Energy 250/250 System Corruption 0% Temperature Cool (48) Movement Walking (120) Location -6/Factory Parts ------- > --- POWER (1) -------- Ion Engine > --- PROPULSION (1) --- Myomer Leg > --- UTILITY (3) ------ Scrapoid Pod > --- WEAPON (2) ------- Gauss Rifle Hypervelocity Gauss Rifle > --- INVENTORY (2) ---- A0-MCA's Component Scanner Makeshift Hammer Peak State ------------ > --- POWER ------------ Ion Engine > --- PROPULSION ------- Myomer Leg > --- UTILITY ---------- Scrapoid Pod > --- WEAPON ----------- High-powered Field Laser Hypervelocity Gauss Rifle > --- INVENTORY -------- A0-MCA's Component Scanner Makeshift Hammer [Rating: 31] Favorites ----------- Power Ion Engine Engine Ion Engine Propulsion Myomer Leg Leg Myomer Leg Hover Unit Improved Gravmag System Flight Unit Flight Unit Utility Scrap Shield Device Scrapoid Pod Storage Large Matter Pod Protection Scrap Shield Weapon Light Assault Rifle Energy Gun High-powered Field Laser Ballistic Gun Light Assault Rifle Special Weapon Mining Laser Impact Weapon Makeshift Hammer Build | -11 -10 -10 -10 -9 -9 -6 ------- Run | Yrd Mat Min Sub Rec Scr Fac Slots Evolved 3 | 2 . . . . . 1 Power . | . . . . . . . Propulsion . | . . . . . . . Utility 2 | 1 . . . . . 1 Weapon 1 | 1 . . . . . . Parts Attached 18 | 1 2 1 7 . 2 5 Power . | . . . . . . . Engine . | . . . . . . . Core . | . . . . . . . Reactor . | . . . . . . . Propulsion 5 | . 2 . 1 . . 2 Treads . | . . . . . . . Leg 2 | . . . 1 . . 1 Wheel . | . . . . . . . Hover 1 | . . . . . . 1 Flight 2 | . 2 . . . . . Utility 4 | . . 1 2 . 1 . Device 1 | . . . . . 1 . Storage 1 | . . 1 . . . . Processor . | . . . . . . . Hackware . | . . . . . . . Protection 2 | . . . 2 . . . Artifact . | . . . . . . . Weapon 9 | 1 . . 4 . 1 3 Energy Gun 1 | . . . . . . 1 Energy Cannon . | . . . . . . . Ballistic Gun 6 | 1 . . 2 . 1 2 Ballistic Cannon . | . . . . . . . Launcher . | . . . . . . . Special Weapon 1 | . . . 1 . . . Impact Weapon 1 | . . . 1 . . . Slashing Weapon . | . . . . . . . Piercing Weapon . | . . . . . . . Special Melee Weapon . | . . . . . . . Unidentified Prototypes 1 | . . . . . . 1 Parts Lost 1 | . . . 1 . . . Power . | . . . . . . . Propulsion . | . . . . . . . Utility 1 | . . . 1 . . . Weapon . | . . . . . . . Highest Loss Streak 1 | . . . 1 . . . To Critical Strikes . | . . . . . . . Average Slot Usage (%) 78 | . 66 66 78 83 82 71 Engine 15 | . 16 16 16 16 16 14 Leg 11 | . . . 10 16 16 14 Flight 4 | . 15 16 5 . . . Device 4 | . . . . . 9 14 Protection 7 | . . . 12 16 6 . Ballistic Gun 22 | . 33 33 27 16 15 25 Impact Weapon 8 | . . . 3 16 16 2 Peak Build Rating 31 | 4 4 5 17 17 30 31 Average Rating 16 | 3 4 4 13 17 22 29 On Entrance 11 | 3 4 4 4 17 17 30 Naked Turns . | . . . . . . . Heaviest Build 27 | 8 8 11 27 27 27 23 Greatest Support 35 | 15 15 9 35 35 35 35 Greatest Overweight (x) 1 | . . 1 1 . . 1 Average Overweight (x) . | . . . . . . . Largest Inventory Capacity 2 | 2 2 2 2 2 2 2 Average Capacity 1 | 1 2 2 2 2 2 2 Most Carried 2 | 1 2 2 2 2 2 2 Average Carried 1 | . 1 2 1 2 1 2 Final Capacity 2 | 2 2 2 2 2 2 2 Final Carried 2 | 1 2 2 2 2 2 2 Class Distribution -------------------- 50% | Mutant 49% | Hacker-Mutant Dominant Class ---------------- Mutant | -10/Materials Mutant | -10/Mines Mutant | -10/Subcaves Hacker-Mutant | -9/Recycling Hacker-Mutant | -9/Scraptown Hacker-Mutant | -6/Factory Resources | -11 -10 -10 -10 -9 -9 -6 ----------- Run | Yrd Mat Min Sub Rec Scr Fac Matter Collected 823 | 210 149 59 365 . 40 . Remotely . | . . . . . . . Salvage Created 304 | . 119 . 143 . . 42 Parts 26 | . 13 . 10 . . 3 Haulers Intercepted 1 | . 1 . . . . . Recyclers Shooed . | . . . . . . . Parts Field Recycled . | . . . . . . . Retrieved Matter . | . . . . . . . Parts Self-Destructed 14 | . . . 14 . . . Prevented . | . . . . . . . Kills | -11 -10 -10 -10 -9 -9 -6 ------- Run | Yrd Mat Min Sub Rec Scr Fac Combat Hostiles Destroyed 13 | . 5 . 6 . . 2 Guns 13 | . 5 . 6 . . 2 Classes Destroyed 6 | . 4 . 2 . . . Hauler 1 | . 1 . . . . . Operator 1 | . 1 . . . . . Turret 2 | . . . 2 . . . Swarmer 7 | . 4 . 1 . . 2 Grunt 1 | . 1 . . . . . Subdweller 5 | . . . 5 . . . Thug 1 | . . . 1 . . . Best Kill Streak 3 | . 2 . 3 . . 2 Combat Bots Only 2 | . 2 . 1 . . 2 Max Kills in Single Turn 1 | . 1 . 1 . . 1 Gunslinging . | . . . . . . . Exploded . | . . . . . . . Melee . | . . . . . . . Uniques/NPCs Destroyed . | . . . . . . . Combat | -11 -10 -10 -10 -9 -9 -6 -------- Run | Yrd Mat Min Sub Rec Scr Fac Hostile Shots Fired 179 | . 46 . 91 . . 42 Missed 71 | . 18 . 34 . . 19 Damage Taken 1825 | . 296 . 1113 . . 416 Core 1294 | . 252 . 693 . . 349 Absorbed by Shields . | . . . . . . . Redirected to Core 858 | . 137 . 495 . . 226 Ignored by Resistances 70 | . . . 45 . . 25 Core Remaining (%) 78 | 100 . . . . 57 . Volleys Fired 113 | . 47 . 60 . . 6 Largest 2 | . 2 . 2 . . 2 Hottest 100 | . 40 . 100 . . 61 Shots Fired 221 | . 94 . 115 . . 12 Gun 216 | . 94 . 110 . . 12 Cannon . | . . . . . . . Launcher . | . . . . . . . Special 5 | . . . 5 . . . Kinetic 216 | . 94 . 110 . . 12 Thermal 5 | . . . 5 . . . Explosive . | . . . . . . . Electromagnetic . | . . . . . . . Robot Hit Streak 23 | . 5 . 23 . . 12 Robot Miss Streak 5 | . 5 . 4 . . . Penetration Max 1 | . . . . . . 1 Secondary Targets 1 | . 1 . . . . . Max Gunslinging Chain 1 | . 1 . . . . . Shots Hit Robots 153 | . 48 . 93 . . 12 Core Hits 50 | . 17 . 28 . . 5 Critical Kills . | . . . . . . . Critical Parts Destroyed 1 | . . . . . . 1 Critical Strikes 1 | . . . . . . 1 Destroy 1 | . . . . . . 1 Melee Attacks 3 | . . . 3 . . . Impact 3 | . . . 3 . . . Slashing . | . . . . . . . Piercing . | . . . . . . . Sneak Attacks . | . . . . . . . Combat Hostiles . | . . . . . . . Follow-up Attacks . | . . . . . . . Damage Inflicted 1902 | . 468 . 1237 . . 197 Guns 1902 | . 468 . 1237 . . 197 Cannons . | . . . . . . . Explosions . | . . . . . . . Melee . | . . . . . . . Ramming . | . . . . . . . Kinetic 1902 | . 468 . 1237 . . 197 Thermal . | . . . . . . . Explosive . | . . . . . . . Electromagnetic . | . . . . . . . Impact . | . . . . . . . Slashing . | . . . . . . . Piercing . | . . . . . . . Highest Corruption . | . . . . . . . Average Corruption . | . . . . . . . Corruption Purged . | . . . . . . . Corruption Blocked . | . . . . . . . Overload Shots . | . . . . . . . Overflow Damage . | . . . . . . . Projectiles . | . . . . . . . Explosions . | . . . . . . . Melee . | . . . . . . . Knockbacks . | . . . . . . . Impact . | . . . . . . . Kinetic . | . . . . . . . Secondary . | . . . . . . . Self-Inflicted Damage . | . . . . . . . Shots . | . . . . . . . Rammed . | . . . . . . . Targets Rammed . | . . . . . . . Kicked . | . . . . . . . Crushed . | . . . . . . . Highest Temperature 36 | . 24 . . . . 36 Average Temperature 5 | . 4 . . . . 18 Received Heat Transfer 396 | . 132 . 204 . . 60 Siege Activations . | . . . . . . . Robots Corrupted . | . . . . . . . Combat Hostiles . | . . . . . . . Parts Fried . | . . . . . . . Impact Corruptions . | . . . . . . . Robots Melted . | . . . . . . . Combat Hostiles . | . . . . . . . Parts Melted . | . . . . . . . Heat Transferred . | . . . . . . . Parts Sabotaged . | . . . . . . . Parts Stolen . | . . . . . . . Parts Stripped . | . . . . . . . Power Chain Reactions . | . . . . . . . Alert | -11 -10 -10 -10 -9 -9 -6 ------- Run | Yrd Mat Min Sub Rec Scr Fac Peak Influence 285 | . 285 76 . 16 . 56 Initial 76 | . . 76 . 16 . . Average 99 | . 175 68 . 16 . 34 Maximum Alert Level 1 | . 1 . . . . . Low Security (%) 87 | 100 65 100 . 100 . 100 Level 1 12 | . 34 . . . . . Level 2 . | . . . . . . . Level 3 . | . . . . . . . Level 4 . | . . . . . . . Level 5 . | . . . . . . . High Security . | . . . . . . . Max Security . | . . . . . . . Squads Dispatched . | . . . . . . . Investigation . | . . . . . . . Extermination . | . . . . . . . Reinforcement . | . . . . . . . Assault . | . . . . . . . Garrison . | . . . . . . . Intercept . | . . . . . . . Searches Triggered . | . . . . . . . Construction Impeded . | . . . . . . . Haulers Reinforced . | . . . . . . . Active Scanning Responses . | . . . . . . . Cargo Convoy Interrupts . | . . . . . . . Stealth | -11 -10 -10 -10 -9 -9 -6 --------- Run | Yrd Mat Min Sub Rec Scr Fac Distress Signals 2 | . 2 . . . . . Communications Jammed . | . . . . . . . Distress Signals . | . . . . . . . Times Spotted 52 | . 21 . 26 . . 5 Peak Tracking Total 7 | . 7 . 6 . . 4 Tactical Retreats 6 | . 4 . 2 . . . Traps | -11 -10 -10 -10 -9 -9 -6 ------- Run | Yrd Mat Min Sub Rec Scr Fac Traps Triggered . | . . . . . . . Indirectly . | . . . . . . . Trap Hack Attempts . | . . . . . . . Triggered . | . . . . . . . Disarmed . | . . . . . . . Reprogrammed . | . . . . . . . Reused . | . . . . . . . Traps Extracted . | . . . . . . . Installed . | . . . . . . . Triggered . | . . . . . . . Machines | -11 -10 -10 -10 -9 -9 -6 ---------- Run | Yrd Mat Min Sub Rec Scr Fac Machines Disabled 2 | . . . 2 . . . Max in Single Turn 1 | . . . 1 . . . Machines Repaired . | . . . . . . . Machines Dismantled . | . . . . . . . Machines Sabotaged . | . . . . . . . Overloaded Fab Kills . | . . . . . . . Hacking | -11 -10 -10 -10 -9 -9 -6 --------- Run | Yrd Mat Min Sub Rec Scr Fac Machines Accessed 13 | . 4 . 2 2 5 . Terminals 5 | . 4 . . 1 . . Fabricators . | . . . . . . . Repair Stations . | . . . . . . . Recycling Units . | . . . . . . . Scanalyzers . | . . . . . . . Garrison Access . | . . . . . . . Total Hacks 31 | . 10 . 3 5 13 . Successful 24 | . 6 . 3 2 13 . Failed 7 | . 4 . . 3 . . Catastrophic 2 | . 2 . . . . . Database Lockouts . | . . . . . . . Manual 7 | . 7 . . . . . Terminals 14 | . 10 . . 4 . . Fabricators . | . . . . . . . Repair Stations . | . . . . . . . Recycling Units . | . . . . . . . Scanalyzers . | . . . . . . . Garrison Access . | . . . . . . . Terminal Hacks 21 | . 3 . 3 2 13 . Record 13 | . . . 1 . 12 . Robot Analysis 1 | . 1 . . . . . Open Door 1 | . . . 1 . . . Alert Level 2 | . 1 . . 1 . . Unreport Threat 1 | . 1 . . . . . Derelict Proto ID Bank 1 | . . . . . 1 . Release Object 2 | . . . 1 1 . . Fabricator Hacks . | . . . . . . . Repair Station Hacks . | . . . . . . . Recycling Unit Hacks . | . . . . . . . Scanalyzer . | . . . . . . . Garrison Access Hacks . | . . . . . . . Unauthorized Hacks 3 | . 3 . . . . . Terminals 3 | . 3 . . . . . Track 1 | . 1 . . . . . Assimilate 1 | . 1 . . . . . Botnet 1 | . 1 . . . . . Fabricators . | . . . . . . . Repair Stations . | . . . . . . . Recycling Units . | . . . . . . . Scanalyzers . | . . . . . . . Garrison Access . | . . . . . . . Data Cores Recovered . | . . . . . . . Used . | . . . . . . . Hacking Detections 5 | . 4 . . 1 . . Full Trace Events 1 | . 1 . . . . . Feedback Events . | . . . . . . . Feedback Blocked . | . . . . . . . Robot Schematics Acquired . | . . . . . . . Robots Built . | . . . . . . . Authchips . | . . . . . . . Time . | . . . . . . . Total Robot Build Rating . | . . . . . . . Part Schematics Acquired . | . . . . . . . Parts Built . | . . . . . . . Authchips . | . . . . . . . Time . | . . . . . . . Total Part Build Rating . | . . . . . . . Parts Repaired . | . . . . . . . Time . | . . . . . . . Parts Recycled . | . . . . . . . Recycled Matter . | . . . . . . . Retrieved Matter . | . . . . . . . Retrieved Components . | . . . . . . . Parts Scanalyzed . | . . . . . . . Part Schematics Acquired . | . . . . . . . Parts Damaged . | . . . . . . . Bothacking | -11 -10 -10 -10 -9 -9 -6 ------------ Run | Yrd Mat Min Sub Rec Scr Fac Used RIF Installer . | . . . . . . . Robots Hacked . | . . . . . . . Non-combat . | . . . . . . . Combat . | . . . . . . . Robot Hacks Applied . | . . . . . . . Relay Couplers Released . | . . . . . . . Fabnet Peak Effective % . | . . . . . . . Robots Rewired . | . . . . . . . Allies Hacked . | . . . . . . . Hacks Repelled . | . . . . . . . Allies | -11 -10 -10 -10 -9 -9 -6 -------- Run | Yrd Mat Min Sub Rec Scr Fac Total Allies 2 | . . . . . 2 . Largest Group 1 | . . . . . 1 . Highest-Rated Group 30 | . . . . . 30 . Highest-Rated Ally 30 | . . . . . 30 . Total Orders . | . . . . . . . Ally Attacks . | . . . . . . . Total Damage . | . . . . . . . Kills . | . . . . . . . Allies Corrupted . | . . . . . . . Allies Melted . | . . . . . . . Intel | -11 -10 -10 -10 -9 -9 -6 ------- Run | Yrd Mat Min Sub Rec Scr Fac Robot Analysis Total 1 | . 1 . . . . . Derelict Logs Recovered . | . . . . . . . Drone Launches . | . . . . . . . Drone Recoveries . | . . . . . . . Exploration | -11 -10 -10 -10 -9 -9 -6 ------------- Run | Yrd Mat Min Sub Rec Scr Fac Turns Passed 5117 | 12 395 442 1711 62 2336 159 Spaces Moved 3592 | 8 330 109 1099 47 1906 93 Core 1 | . . . . . . 1 Treads . | . . . . . . . Legs 2768 | 8 7 . 708 47 1906 92 Wheels . | . . . . . . . Hover . | . . . . . . . Flight 823 | . 323 109 391 . . . Fastest Speed 40 | 120 40 40 40 120 120 100 Average Speed 110 | 120 41 41 119 120 120 119 Slowest Speed 120 | 120 120 120 120 120 120 120 Overloaded Moves . | . . . . . . . Propulsion Burnouts . | . . . . . . . Robots Hopped . | . . . . . . . Cave-ins Triggered . | . . . . . . . Exploration Rate (%) 33 | 3 46 32 71 14 69 2 Regions Visited 6 Branch Regions 4 Pre-discovered Areas 1 | . . . 1 . . . Known Exits Taken . | . . . . . . . Unknown Exits Taken 6 | 1 1 1 1 1 1 . Scrap Searched 18 | . . . 13 . 5 . Spaces Dug . | . . . . . . . Terrain Destroyed . | . . . . . . . Melee . | . . . . . . . Projectile . | . . . . . . . AOE . | . . . . . . . Terrain Rammed . | . . . . . . . Walls Destroyed . | . . . . . . . Machines Disabled . | . . . . . . . Actions | -11 -10 -10 -10 -9 -9 -6 --------- Run | Yrd Mat Min Sub Rec Scr Fac Total 4533 | 10 502 505 1379 52 1957 128 Wait 744 | . 116 395 170 6 37 20 Move 3586 | 7 329 108 1098 46 1905 93 Hop . | . . . . . . . Pick Up 14 | 2 4 . 3 . 5 . Fast Attach 10 | . . 1 3 . 2 4 Attach 2 | 1 . . 1 . . . Detach . | . . . . . . . Swap 6 | . 2 . 3 . . 1 Drop 18 | . 3 1 4 . 6 4 Fire 113 | . 47 . 60 . . 6 Melee 3 | . . . 3 . . . Ram . | . . . . . . . Kick . | . . . . . . . Crush . | . . . . . . . Escape Stasis . | . . . . . . . Rewire 2 | . . . . . 2 . Trap . | . . . . . . . Miscellaneous 35 | . 1 . 34 . . . Route ------- -11/Scrapyard -10/Materials (discovered 2 exits: [*Mat] / [*Min]) -10/Mines (discovered 2 exits: [*Mat] / *Sub) -10/Subcaves (discovered 2 exits: [*Mat] / *Rec) -9/Recycling -9/Scraptown -6/Factory History --------- Turn | Location | Event 1 | -11/Scrapyard | Discovered new exit (range 1) 3 | -11/Scrapyard | Upgraded with Utility slot (x1) 3 | -11/Scrapyard | Upgraded with Weapon slot (x1) 13 | -11/Scrapyard | Entered Materials 295 | -10/Materials | Discovered new exit (range 15) 313 | -10/Materials | Build established: Mutant 338 | -10/Materials | Discovered new exit (range 16) 408 | -10/Materials | Entered Mines 473 | -10/Mines | Discovered new exit (range 10) 850 | -10/Mines | Discovered new exit (range 3) 850 | -10/Mines | Entered Subcaves 852 | -10/Subcaves | Reached level 2 901 | -10/Subcaves | Ambushed by swarm of Subdwellers 913 | -10/Subcaves | Core integrity fell below 50% 1071 | -10/Subcaves | Disturbed a concealed Subdweller 1283 | -10/Subcaves | A swath of the cavern ceiling suddenly collapsed 1381 | -10/Subcaves | Shifting Twisted Machinery released Mak. System Shield 1388 | -10/Subcaves | Discovered new exit (range 11) 1391 | -10/Subcaves | Shifting Twisted Machinery released Mak. Hammer 1438 | -10/Subcaves | Ambushed by Subdweller buried in earth 1440 | -10/Subcaves | Ambushed by Subdweller buried in earth 1448 | -10/Subcaves | Ambushed by Subdweller buried in earth 1626 | -10/Subcaves | Released subatomizers from SUBCON Basin 1963 | -10/Subcaves | Learned location of Zion (-6) 1963 | -10/Subcaves | Met a Zionite searching for "candidates" 2110 | -10/Subcaves | Discovered new exit (range 10) 2276 | -10/Subcaves | A swath of the cavern ceiling suddenly collapsed 2561 | -10/Subcaves | Entered Recycling 2563 | -9/Recycling | Reached level 3 2591 | -9/Recycling | Scanned before Scraplab entrance 2609 | -9/Recycling | Entered Scraplab 2620 | -9/Recycling | Discovered new exit (range 2) 2623 | -9/Recycling | Entered Scraptown 2736 | -9/Scraptown | Visited Bundlers 2758 | -9/Scraptown | Visited CPS Storage 2767 | -9/Scraptown | Visited Comm Corps 2842 | -9/Scraptown | Visited CR-KLE's Repair Center 2869 | -9/Scraptown | Build established: Hacker-Mutant 2921 | -9/Scraptown | Visited IN-MT5's Study 2969 | -9/Scraptown | Visited The Evicted 3019 | -9/Scraptown | Visited Symbiants 3165 | -9/Scraptown | Visited UFD Registry 3165 | -9/Scraptown | Registered with UFD as "Smoothbucket" 3235 | -9/Scraptown | Visited Botcube Research 3286 | -9/Scraptown | Visited Cartography Club 3357 | -9/Scraptown | Visited Science Guys 3436 | -9/Scraptown | Visited Curators Association 3521 | -9/Scraptown | Visited Abandonware Association 3533 | -9/Scraptown | Learned abandonware demo "ERRANTS.EXE" 3533 | -9/Scraptown | Learned abandonware demo "KABOOM.EXE" 3569 | -9/Scraptown | Visited Scrapoid Pod Storage 3582 | -9/Scraptown | Found Scrapoid Pod 3610 | -9/Scraptown | Visited Scrapoid Research Area 3672 | -9/Scraptown | Visited A0-MCA Data Center 3680 | -9/Scraptown | Given a B+ rating by A0-MCA 3686 | -9/Scraptown | Found A0-MCA's Component Scanner 4072 | -9/Scraptown | Delivered Scrap Shield to a Scientist 4141 | -9/Scraptown | Visited Chapter 10 4435 | -9/Scraptown | Discovered new exit (range 5) 4545 | -9/Scraptown | Lrg. Botcube activated 4553 | -9/Scraptown | Lrg. Botcube activated 4959 | -9/Scraptown | Entered Factory 4961 | -6/Factory | Reached level 4 4962 | -6/Factory | Upgraded with Utility slot (x1) 4991 | -6/Factory | Core integrity fell below 50% 4994 | -6/Factory | Core integrity fell below 20% 5118 | -6/Factory | Destroyed by Y-54 Guardian with Gatling Laser Last Messages --------------- 05015_ 2 Matter crushed. 05017_ The unstable cave ceiling collapses. 05035_ Dropped Gauss Rifle. 05036_ Acquired Prototype Energy Gun. 05036_ Identified Hpw. Field Laser. 05037_ Dropped Hpw. Field Laser. 05039_ Acquired Gauss Rifle. 05064_ Dropped Myomer Leg. 05065_ Acquired Imp. Gravmag System. 05066_ Dropped Imp. Gravmag System. 05068_ Acquired Myomer Leg. 05106_ HV Slug penetrates Y-54 Guardian. 05106_ HV Slug penetrates Door. 05109_ Slug penetrates Y-54 Guardian. 05109_ HV Slug penetrates Y-54 Guardian. 05112_ Slug penetrates Y-54 Guardian. 05112_ HV Slug penetrates Y-54 Guardian. 05115_ Y-54 Guardian suffers critical hit (Destroy). 05115_ Destroyed Flak Gun. Map ----- +----------------------------------------------------+ | ????????????????????????????????????????????? | | #????????????????????????????????????????????? | | #????????????????????????????????????????????? | | #????????????????????????????????????????????? | | #????????????????????????????????????????????? | | #????????????????????????????????????????????? | | #????????????????????????????????????????????? | | #????????????????????????????????????????????? | | ?????????????????????????????????????????????????? | | ?????????????????????????????????????????????????? | | ?????????????????? ????????????????????????????? | | ????????########## #???????????????????????????? | | ????????# # #???????????????????????????? | | ????????# # #???????????????????????????? | | #???????# = """" # #???????????????????????????? | | #???????# """" # #???????????????????????????? | | ###?????# ! """" + #???????????????????????????? | | #?????# """" # #???????????????????????????? | | #?????# """" # #???????????????????????????? | | # #?????# """" # #???????????????????????????? | | #?????# # #???????????????????????????? | | ##????####+##### +???????????????????????????? | | ##???????# #???????????????????????????? | | ####?????# ######??????????????????????? | | ####### #??????????????????????? | | ! + @#??????????????????????? | | # ! # ##### #??????????????????????? | | #* # #???###### #??????????????????????? | | # + #????????# #??????????????????????? | | # ! #########?????#### #??????????????????????? | | # [#?????????????# #??????????????????????? | | # ! #?????????????# #??????????????????????? | | # #?????????????# Y#??????????????????????? | | ######?????????????# #??????????????????????? | | ???????????????????# ???????????????????? | | ???????????????????# ????????????????? | | ???????????????????# #???????????????? | | ???????????????????#+####;## #???????????????? | | ????????????????????????? ??## ###???????????????? | | ?????????????????????????]???? #?????????????????? | | ????????????????????????? ????? ?????????????????? | | ????????????????????????????????#????????????????? | | ?????????????????????????????????????????????????? | | ?????????????????????????????????????????????????? | | ?????????????????????????????????????????????????? | | ?????????????????????????????????????????????????? | | | | | | | | | +----------------------------------------------------+ Best States ------------- Heat Dissipation 25 Energy Generation 10 Energy Capacity 250 Matter Stores 440 Matter Capacity 450 Sight Range 16 Terrain Scan Density 10 Armor Coverage 800 Resistance: KI 5 Resistance: EX 5 Evasion (%) 62 Offensive Hacking 20 Defensive Hacking 5 Item Schematics ----------------- None Robot Schematics ------------------ None Fabricated ------------ Nothing Alien Tech Used ----------------- None Achievements -------------- None Challenges ------------ None RPGLIKE | -11 -10 -10 -10 -9 -9 -6 --------- Run | Yrd Mat Min Sub Rec Scr Fac Levels Raised 3 | . . . 1 1 . 1 XP Earned 8785 | 3000 635 500 1300 1000 650 1700 XP Spent 7450 | 2850 . . 1650 1400 . 1550 Upgrades 18 | 9 . . 4 2 . 3 Utility Slot 2 | 1 . . . . . 1 Weapon Slot 1 | 1 . . . . . . Mass Support 2 | 1 . . 1 . . . Inventory Capacity 2 | 2 . . . . . . Ranged Accuracy 3 | . . . 2 . . 1 Hack Attack % 4 | 2 . . . 2 . . Hack Defense % 1 | 1 . . . . . . KI Resistance % 1 | . . . 1 . . . EX Resistance % 1 | . . . . . . 1 KI Damage % 1 | 1 . . . . . . Protomatter Created 215 | . 66 . 139 . . 10 Integrity Restored 692 | . 24 . 668 . . . Core 692 | . 24 . 668 . . . Protomatter Decayed 228 | . 58 . 170 . . . Game ------ Seed GuidedRecoilAxe Manual? 0 Play Time 00:47:40 Cumulative 63.8 hours Start 2024.08.24 @ 05:50:25 End 2024.08.24 @ 17:25:33 Sessions 2 Manual Loads 0 Difficulty Rogue Special Mode Winter2019/RPGLIKE Game No. 104 Rogue 100 Adventurer 4 Explorer 0 Win Type - Total 0 Types 0/0/0/0/0/0/0/0/0 Lore% 29 Gallery% 42 Achievement% 34 Wizard Run 0 Options --------- Layout 2 ASCII 0 Keyboard 0 Movement Mouse Keybinds 0 Fullscreen 2 Font 24/Smallcaps Map View 50x44 Zoom Use 0% Tactical HUD 1 Map Filters NONE Filters NONE Steam 1 RUN: 4a5aee48-c784-47fe-b7f7-e694ecee200f